[Event "ChessKid Cup Div-I 2023"]
[Site "Online"]
[Date "2023.05.23"]
[Round "2.4"]
[White "Kollars, Dmitrij"]
[Black "Van Foreest, Jorden"]
[Result "1/2-1/2"]
[ECO "C48"]
[WhiteElo "2607"]
[BlackElo "2689"]
[Annotator "TA"]
[PlyCount "156"]
[EventDate "2023.05.21"]
[EventType "k.o."]
[EventCountry "NET"]
[SourceTitle "playchess.com"]
[Source "ChessBase"]
[SourceQuality "1"]
[TimeControl "900+3"]

{[%evp 12,156,27,20,10,13,12,22,29,36,22,18,16,6,24,16,53,57,80,76,91,81,108,89,212,187,172,94,87,86,81,68,68,68,68,68,68,68,68,68,68,68,68,68,68,72,72,80,68,68,79,68,75,68,72,70,91,93,92,58,58,46,68,58,58,58,58,30,30,0,0,0,0,0,0,0,0,0,329,251,183,0,0,0,17,25,73,74,2322,224,29956,29964,29958,29965,29962,29964,29965,29960,29962,29962,29958,29960,29973,29971,29971,29971,12843,0,29966,29968,29961,29957,29965,298,2432,2059,29964,2090,29966,29967,29961,29963,12810,9670,5341,0,0,0,0,0,0,0,0,0,0,0,0,0,0,0,0,0,0,-551,-580,-462,0]} 1. e4 {[%emt 0:00:05]} e5 {[%emt 0:00:05]} 2. Nf3 {[%emt 0:00:01]} Nc6 {[%emt 0:00:01]} 3. Bb5 {[%emt 0:00:04]} Nf6 {[%emt 0:00:02]} 4. d3 {[%emt 0:00:02]} Bc5 {[%emt 0:00:01]} 5. Nc3 {[%emt 0:00:02]} Nd4 {[%emt 0:00:18]} 6. Nxe5 {[%emt 0:00:05]} c6 {[%emt 0:00:25]} 7. Bc4 {[%emt 0:00:03]} d5 {[%emt 0:00:11]} 8. exd5 $1 {[%emt 0:00:04]} cxd5 {[%emt 0:00:27]} 9. Bb3 {[%emt 0:00:01]} O-O {[%emt 0:00:06]} (9... Qe7 10. O-O $16 (10. Bf4 Nxb3 11. cxb3 d4 $11)) 10. O-O {[%emt 0:00:02]} Re8 {[%emt 0:00:12]} 11. Bf4 {[%emt 0:00:22]} b5 {[%emt 0:00:05]} 12. Re1 {[%emt 0:01:11]} h6 {[%emt 0:01:27]} 13. Bg3 {[%emt 0:00:21]} a5 {[%emt 0:00:04]} 14. a4 $1 {[%emt 0:00:22]} b4 {[%emt 0:01:50]} 15. Nb5 {[%emt 0:00:05]} Ra6 {[%emt 0:00:11]} 16. c3 {[%emt 0:00:46]} Nxb3 {[%emt 0:00:25]} 17. Qxb3 {[%emt 0:00:01]} Bf5 {[%emt 0:00:18]} (17... bxc3 $16 {might work better.} 18. Rec1 (18. Qxc3 Bb4 $14) (18. bxc3 Rae6 $16) 18... Rae6) 18. d4 {[%emt 0:00:24]} Bf8 {[%emt 0:00:01]} 19. Re3 {[%emt 0:01:33]} (19. Rec1 $18) 19... Ne4 $16 {[%emt 0:00:07]} 20. Rae1 {[%emt 0:00:10]} Rae6 {[%emt 0:00:04]} 21. Nf3 {[%emt 0:01:12]} Rc6 {[%emt 0:00:02]} 22. Nc7 {[%emt 0:01:04]} (22. Bc7 {with more complications.} Rxc7 23. Nxc7 Qxc7 24. Qxd5 g6 25. Rxe4 Bxe4 26. Rxe4 Rxe4 27. Qxe4 bxc3 28. bxc3 Qxc3 29. Qe1) 22... Rxc7 {[%emt 0:01:06]} 23. Bxc7 {[%emt 0:00:00]} Qxc7 {[%emt 0:00:01]} 24. Qxd5 {[%emt 0:00:04]} g6 {[%emt 0:00:30]} (24... Qf4 $2 25. g3 (25. Qxa5 bxc3 26. bxc3 Bg4 $16) 25... Qg4 26. Nh4 (26. Qxa5 Ng5 $16) (26. Ne5 Rxe5 27. Qxe5 Ng5 $16) 26... Nxc3 27. Qxf5 $18) 25. Rxe4 {[%emt 0:00:26]} Rxe4 {[%emt 0:00:02]} 26. Rxe4 {[%emt 0:00:00]} Bxe4 {[%emt 0:00:01]} 27. Qxe4 {[%emt 0:00:00]} bxc3 {[%emt 0:00:01]} 28. bxc3 {[%emt 0:00:00]} Qxc3 {[%emt 0:00:01]} 29. Qe1 {[%emt 0:00:15]} Qb3 {[%emt 0:02:03]} 30. Qxa5 {[%emt 0:00:23]} Qd1+ {[%emt 0:00:04]} 31. Qe1 $1 {[%emt 0:01:06]} Qxa4 {[%emt 0:00:01]} 32. h3 {[%emt 0:00:01]} Bd6 {[%emt 0:00:04]} 33. g3 {[%emt 0:01:18]} Qc6 {[%emt 0:00:10]} 34. Qe3 {[%emt 0:00:02]} Kg7 {[%emt 0:00:11]} 35. Nd2 {[%emt 0:00:20]} Bc7 {[%emt 0:00:44]} 36. Qd3 {[%emt 0:00:22]} Qd5 {[%emt 0:00:18]} 37. Nc4 {[%emt 0:00:05]} h5 {[%emt 0:00:21]} 38. h4 {[%emt 0:01:03]} Bb8 {[%emt 0:00:01]} 39. Ne3 {[%emt 0:00:23]} Qf3 {[%emt 0:00:03]} 40. d5 {[%emt 0:00:39]} Ba7 {[%emt 0:00:26]} 41. d6 {[%emt 0:00:44]} Bxe3 {[%emt 0:00:02]} 42. fxe3 {[%emt 0:00:00]} Qxg3+ {[%emt 0:00:01]} 43. Kf1 {[%emt 0:00:00]} Qh3+ {[%emt 0:01:54]} 44. Ke2 {[%emt 0:00:01]} Qd7 $2 {[%emt 0:00:12][%mdl 8192]} (44... Qh2+ $11 45. Kd1 Qh1+ 46. Kc2 Qg2+ 47. Kb3 Qb7+ 48. Kc3 Qc6+ 49. Kb4 Kf6) 45. Qc3+ {[%emt 0:00:08]} Kg8 {[%emt 0:00:01]} 46. Qc7 $2 {[%emt 0:00:26]} (46. Qd4 $18) 46... Qb5+ $11 {[%emt 0:00:08]} 47. Kd2 {[%emt 0:00:02]} Qd5+ {[%emt 0:01:01]} 48. Kc3 {[%emt 0:00:01]} Qe5+ {[%emt 0:00:01]} 49. Kb4 {[%emt 0:00:08]} Qe4+ $2 {[%emt 0:00:29][%mdl 8192]} (49... Kg7 $16) 50. Kb5 $2 {[%emt 0:00:05]} (50. Ka5 {Threatening mate with d7.} Qe5+ 51. Ka6) 50... Qb1+ $2 {[%emt 0:00:11]} (50... Qd3+ $18 51. Kb6 Qxe3+ 52. Qc5 Qh3) 51. Ka6 $1 {[%emt 0:00:08]} Qd3+ {[%emt 0:00:11]} 52. Kb7 $1 {[%emt 0:00:03]} Qb5+ {[%emt 0:00:28]} 53. Kc8 {[%emt 0:00:04]} Qa6+ {[%emt 0:00:07]} 54. Kb8 {[%emt 0:00:02]} Qb5+ {[%emt 0:00:01]} 55. Qb7 $1 {[%emt 0:00:39]} Qe5 {[%emt 0:00:02]} 56. Qb6 {[%emt 0:00:04]} g5 {[%emt 0:00:01]} 57. Qd4 {[%emt 0:00:28]} Qb5+ {[%emt 0:00:02]} 58. Kc7 {[%emt 0:00:01]} Qa5+ {[%emt 0:00:01]} 59. Kc6 $2 {[%emt 0:00:01]} ({White has to play} 59. Qb6 $18 Qe5 60. Kb7) 59... Qa6+ $2 {[%emt 0:00:03][%mdl 8192] [#]} (59... Qa8+ $11 60. Kc7 Qa5+ 61. Qb6 Qe5) 60. Qb6 $1 {[%emt 0:00:02]} Qc8+ {[%emt 0:00:24]} 61. Qc7 {[%emt 0:00:02]} Qa6+ {[%emt 0:00:04]} 62. Kc5 $2 {[%emt 0:00:00]} (62. Kd7 {mates} Qa3 63. Qd8+ Kg7 64. Qxg5+ (64. hxg5 Qa4+ 65. Kc8 Qa8+ 66. Kd7 Qa4+ 67. Kc8 Qa8+ 68. Kd7 Qa4+ $11) 64... Kf8 65. Qd8+ (65. Qxh5 Qa7+ 66. Kc6 Qa6+ 67. Kd7 Qa7+ 68. Kc6 Qa6+ 69. Kd7 Qa7+ $11) 65... Kg7 66. Ke8 Qa4+ 67. d7 Qe4+ 68. Qe7 Qa8+ 69. d8=N (69. d8=B Qc6+ 70. Qd7 Qe4+ 71. Be7 Qa8+ 72. Qd8 Qc6+ 73. Qd7 Qa8+ 74. Bd8 Qe4+ 75. Qe7 Qc6+ 76. Qd7 Qe4+ $11) 69... Qa4+ 70. Qd7 Qxh4 71. Qxf7+ (71. Nxf7 Qe4+ 72. Ne5+ Kf6 $14) 71... Kh8 72. Qf8+ Kh7 73. Qf5+ Kh6 74. Qf8+ Kh7 75. Qf5+ Kh6 76. Qf8+ Kh7) 62... Qa3+ $18 {[%emt 0:00:01]} 63. Kb5 {[%emt 0:00:01]} Qb3+ {[%emt 0:00:01]} 64. Ka6 {[%emt 0:00:01]} (64. Kc5 Qxe3+ 65. Kb5 (65. Kc6 Qf3+ 66. Kb6 Qb3+ 67. Ka6 Qa4+ 68. Kb7 Qb5+ 69. Ka7 Qa4+ 70. Kb6 Qb4+ 71. Ka6 Qa4+ 72. Kb7 Qb5+ 73. Ka7 Qa4+ 74. Kb6 Qb4+ 75. Ka6 Qa4+ $16) 65... Qd3+ 66. Kb6 (66. Kc6 gxh4 67. d7 Qe4+ 68. Kb5 Qb1+ 69. Kc5 Qg1+ 70. Kb5 Qb1+ 71. Ka6 Qd3+ 72. Ka7 Qa3+ 73. Kb8 Qb4+ 74. Kc8 Qg4 $16) 66... Qb3+ 67. Ka6 (67. Kc5 Qe3+ 68. Kb5 Qb3+ 69. Ka6 Qa4+ 70. Kb7 Qb5+ 71. Kc8 gxh4 $16) 67... Qa4+ 68. Kb7 Qb5+ 69. Kc8 gxh4 $16) (64. Kc6 $142 Qc4+ 65. Kb7 Qb5+ 66. Kc8 Qd5 67. d7 Qa8+ 68. Qb8 Qc6+ 69. Qc7 Qa8+ 70. Qb8 Qc6+ 71. Kd8) 64... Qd3+ {[%emt 0:00:09]} 65. Kb7 {[%emt 0:00:04]} Qb5+ {[%emt 0:00:01]} 66. Kc8 {[%emt 0:00:03]} Qa6+ {[%emt 0:00:01]} 67. Kd8 {[%emt 0:00:05]} gxh4 {[%emt 0:00:01] [#]} 68. d7 $2 {[%emt 0:00:01]} (68. Qc5 $1 $18 {d7 would kill now.} h3 69. Ke7) 68... h3 $1 $11 {[%emt 0:00:01]} 69. Qc8 {[%emt 0:00:04]} Qd6 {[%emt 0:00:07]} 70. Qb7 {[%emt 0:00:15]} h2 {[%emt 0:00:03]} 71. Kc8 {[%emt 0:00:09]} Qc5+ {[%emt 0:00:01]} 72. Kb8 {[%emt 0:00:03]} Qe5+ {[%emt 0:00:01]} (72... Qxe3 {is a self mate.} 73. d8=Q+ Kg7 74. Qg2+) 73. Kc8 {[%emt 0:00:04]} Qc5+ {[%emt 0:00:01]} (73... Qxe3 74. d8=Q+ Kg7 75. Qg2+) 74. Kd8 {[%emt 0:00:03]} Qf8+ {[%emt 0:00:05]} 75. Kc7 {[%emt 0:00:03]} Qc5+ {[%emt 0:00:00]} 76. Kb8 {[%emt 0:00:02]} Qe5+ {[%emt 0:00:02]} (76... Qxe3 {leads to mate.} 77. d8=Q+ Kg7 78. Qg2+) 77. Ka7 $2 {[%emt 0:00:08][%mdl 8192]} (77. Kc8 $11 {and White has nothing to worry.} Qc3+ 78. Kd8) 77... Qa5+ $19 {[%emt 0:00:01]} (77... Qxe3+ 78. Kb8 Qf4+ 79. Kc8 Qc4+ 80. Kb8 $11) 78. Kb8 {[%emt 0:00:01]} Qe5+ $2 {[%emt 0:00:01]} (78... h1=Q $19 79. Qxh1 Qd8+ 80. Ka7 Qxd7+ 81. Kb6 Qg4 82. Qa8+ Kh7) 1/2-1/2

[Event "ChessKid Cup Div-I 2023"]
[Site "Online"]
[Date "2023.05.24"]
[Round "3.1"]
[White "Van Foreest, Jorden"]
[Black "Abdusattorov, Nodirbek"]
[Result "1/2-1/2"]
[ECO "D35"]
[WhiteElo "2689"]
[BlackElo "2731"]
[Annotator "TA"]
[PlyCount "96"]
[EventDate "2023.05.21"]
[EventType "k.o."]
[EventCountry "NET"]
[SourceTitle "playchess.com"]
[Source "ChessBase"]
[SourceQuality "1"]
[TimeControl "900+3"]

{[%evp 18,96,35,34,28,27,33,35,35,34,44,37,37,37,39,35,49,22,33,12,12,12,12,12,12,11,11,14,14,11,18,18,16,16,22,11,25,0,23,4,5,8,8,8,8,-34,-34,-34,-34,-34,-34,-34,-41,-41,-34,-34,-38,-38,-34,-49,-58,-88,0,0,0,0,0,0,0,0,0,0,0,0,0,0,0,0,0,0,0]} 1. d4 {[%emt 0:00:06]} d5 {[%emt 0:00:08]} 2. c4 {[%emt 0:00:02]} e6 {[%emt 0:00:02]} 3. Nc3 {[%emt 0:00:02]} Nf6 {[%emt 0:00:02]} 4. cxd5 {[%emt 0:00:02]} exd5 {[%emt 0:00:05]} 5. Bg5 {[%emt 0:00:03]} c6 {[%emt 0:00:02]} 6. e3 {[%emt 0:00:03]} Bf5 {[%emt 0:00:17]} 7. Qf3 {[%emt 0:00:04]} Bg6 {[%emt 0:00:01]} 8. Bxf6 {[%emt 0:00:01]} Qxf6 {[%emt 0:00:00]} 9. Qxf6 {[%emt 0:00:02]} gxf6 {[%emt 0:00:00]} 10. Nf3 {[%emt 0:00:28]} Nd7 {[%emt 0:00:07] D35: Queen's Gambit Declined: Exchange Variation.} 11. Nh4 {[%emt 0:00:03]} Bb4 {[%emt 0:00:11]} 12. a3 {[%emt 0:00:48]} Bxc3+ {[%emt 0:00:04] White is slightly better.} 13. bxc3 {[%emt 0:00:00]} b5 {[%emt 0:00:11]} 14. a4 {[%emt 0:00:08]} bxa4 {[%emt 0:00:02]} 15. Rxa4 {[%emt 0:00:19]} a5 {[%emt 0:00:06]} 16. Kd2 {[%emt 0:00:26]} Nb6 {[%emt 0:00:04] [#]} 17. Ra1 $146 {[%emt 0:00:03]} ({Predecessor:} 17. Ra2 Kd7 18. Be2 a4 19. Nxg6 hxg6 20. h4 f5 21. h5 Kc7 22. Kc2 Rh6 23. Rb2 gxh5 {½-½ Alonso Rosell,A (2572)-Bacrot,E (2678) FRA-chT Top 12 2021 (6.3)}) 17... Kd7 {[%emt 0:00:02]} 18. Nxg6 {[%emt 0:00:33]} hxg6 {[%emt 0:00:36]} 19. h4 {[%emt 0:00:05]} f5 {[%emt 0:00:53]} 20. Bd3 {[%emt 0:00:43]} Kc7 {[%emt 0:00:19]} 21. g3 {[%emt 0:00:37]} a4 {[%emt 0:00:10]} 22. Ra3 {[%emt 0:01:04]} Ra5 {[%emt 0:00:17]} 23. Rb1 {[%emt 0:00:05]} Rha8 {[%emt 0:01:12]} (23... c5 {feels hotter.} 24. dxc5 Nd7 25. c6 Nc5) 24. Rb4 {[%emt 0:00:04]} c5 {[%emt 0:00:26]} 25. dxc5 {[%emt 0:00:03]} Rxc5 {[%emt 0:00:00]} 26. Ke2 {[%emt 0:00:27]} Kc6 {[%emt 0:01:03]} 27. Bc2 {[%emt 0:00:51]} Rca5 {[%emt 0:00:15]} 28. Kf3 {[%emt 0:00:19]} Kc5 {[%emt 0:01:06]} 29. Kf4 {[%emt 0:00:30]} Rb5 {[%emt 0:01:10]} 30. Rxb5+ {[%emt 0:01:20]} Kxb5 $11 {[%emt 0:00:00][%mdl 4096] Endgame KRB-KRN} 31. h5 {[%emt 0:00:06][%mdl 64] [#] Deflection} gxh5 {[%emt 0:00:22]} 32. Kxf5 {[%emt 0:00:23]} Nc4 {[%emt 0:01:21]} 33. Bd3 {[%emt 0:00:02]} Kc5 {[%emt 0:00:30]} 34. Bxc4 {[%emt 0:00:02]} Kxc4 $15 {[%emt 0:00:02] KR-KR} 35. e4 $1 {[%emt 0:00:41]} dxe4 {[%emt 0:01:52]} 36. Kxe4 {[%emt 0:00:01]} Ra5 {[%emt 0:00:02]} 37. Ke3 $1 {[%emt 0:00:01]} f5 {[%emt 0:00:06]} 38. Kd2 {[%emt 0:00:13] [#]} f4 $1 {[%emt 0:00:15]} 39. Kc2 {[%emt 0:00:02]} f3 {[%emt 0:00:16]} (39... Ra8 $17) 40. Ra1 {[%emt 0:00:02] The position is equal.} a3 {[%emt 0:00:02] Hoping for ...a2.} 41. Rh1 {[%emt 0:00:17] Rh4+ would kill now.} Re5 {[%emt 0:00:59] ( -> ...Re2+)} (41... Ra7 $5 42. Rh4+ $8 Kc5 43. Rxh5+ Kd6 $11) 42. Rh4+ {[%emt 0:00:03]} Kd5 {[%emt 0:00:02] White must now prevent ...a2.} (42... Kc5 $5 43. Kb3 $8 Kd5 $11) 43. Kb3 {[%emt 0:00:43]} a2 {[%emt 0:00:47]} 44. Ra4 {[%emt 0:00:17]} Re2 {[%emt 0:00:03]} 45. Ra5+ $1 {[%emt 0:00:00]} Ke4 {[%emt 0:00:08]} 46. Ra4+ {[%emt 0:00:01]} Kd5 {[%emt 0:00:56]} 47. Ra5+ $1 {[%emt 0:00:26]} Ke4 {[%emt 0:00:02]} 48. Ra4+ {[%emt 0:00:02]} Kd5 {[%emt 0:00:10] Weighted Error Value: White=0.05 (flawless) /Black=0.04 (flawless)} 1/2-1/2

[Event "ChessKid Cup Div-I 2023"]
[Site "Online"]
[Date "2023.05.24"]
[Round "3.2"]
[White "Abdusattorov, Nodirbek"]
[Black "Van Foreest, Jorden"]
[Result "1/2-1/2"]
[ECO "E73"]
[WhiteElo "2731"]
[BlackElo "2689"]
[Annotator "TA"]
[PlyCount "110"]
[EventDate "2023.05.21"]
[EventType "k.o."]
[EventCountry "NET"]
[SourceTitle "playchess.com"]
[Source "ChessBase"]
[SourceQuality "1"]
[TimeControl "900+3"]

{[%evp 13,110,34,35,33,33,39,61,38,50,62,64,30,24,16,31,30,45,0,0,0,44,54,38,18,31,8,28,8,8,7,6,0,0,-14,0,-106,-114,-287,-279,125,639,627,614,607,587,45,564,544,556,2,2,0,0,-15,-16,-29,-30,-212,0,-8,-8,-8,-8,-8,-8,-14,-14,-61,-61,-64,-64,-64,-64,-64,-64,-83,-83,-83,-83,-104,-104,-104,-104,-104,-104,-104,-80,-80,-80,-104,-104,-104,-104,-104,0,-104,0,-104,0]} 1. d4 {[%emt 0:00:04]} Nf6 {[%emt 0:00:05]} 2. c4 {[%emt 0:00:02]} g6 {[%emt 0:00:02]} 3. Nc3 {[%emt 0:00:01]} Bg7 {[%emt 0:00:01]} 4. e4 {[%emt 0:00:02]} d6 {[%emt 0:00:01]} 5. Be2 {[%emt 0:00:00]} O-O {[%emt 0:00:12]} 6. Be3 {[%emt 0:00:01]} c5 {[%emt 0:00:04]} 7. d5 {[%emt 0:00:02]} e6 {[%emt 0:00:03]} 8. Nf3 {[%emt 0:00:01][%cal Bg1f3,Bf3d2,Bd2c4][%mdl 32] E73: King's Indian: Averbakh Variation without 6...c5.} Re8 {[%emt 0:00:01]} 9. Nd2 {[%emt 0:00:05]} Bd7 {[%emt 0:00:02] [#]} 10. O-O $146 {[%emt 0:01:38] White is slightly better.} ({Predecessor:} 10. e5 dxe5 11. Bxc5 Na6 12. Be3 exd5 13. cxd5 Nc7 14. Nc4 Nb5 15. Nxb5 Bxb5 16. a4 {½-½ Woodward,A (2436)-Kevlishvili,R (2541) New York Spring GM-A 2023 (1.2)}) 10... exd5 {[%emt 0:00:03]} 11. cxd5 {[%emt 0:01:57]} b5 {[%emt 0:00:01][%mdl 64] Deflection} 12. Bxb5 {[%emt 0:00:01]} (12. Qc2 $5 {[%cal Rc3b5]}) 12... Bxb5 {[%emt 0:00:20]} 13. Nxb5 {[%emt 0:00:01]} Nxe4 {[%emt 0:00:01]} 14. Nc4 {[%emt 0:01:16]} a6 {[%emt 0:00:04] [#]} 15. Nc3 {[%emt 0:00:34]} Nxc3 {[%emt 0:00:51]} 16. bxc3 {[%emt 0:00:00]} Qf6 {[%emt 0:02:46]} 17. Qa4 {[%emt 0:02:06]} Rd8 {[%emt 0:01:17]} (17... Re4 $2 18. Rae1 $18 (18. f3 Re7 $16) (18. f3 Re7 $14)) 18. Rab1 {[%emt 0:00:32] Rb7 is the strong threat.} Nd7 {[%emt 0:00:04]} 19. Rb7 {[%emt 0:00:05]} (19. Na5 $5 {[%cal Ra5b7]}) 19... Ne5 {[%emt 0:01:09]} 20. Nxe5 {[%emt 0:00:27]} (20. Nd2 $5 {[%cal Rd2e4]}) 20... Qxe5 {[%emt 0:00:02]} 21. c4 {[%emt 0:00:05]} Qe4 {[%emt 0:00:21]} 22. Bg5 {[%emt 0:00:24]} Rdb8 {[%emt 0:00:29]} 23. Qxa6 {[%emt 0:02:47][%mdl 64] Deflection} Bd4 {[%emt 0:00:03]} 24. Bh6 {[%emt 0:01:10]} Re8 $1 $17 {[%emt 0:02:01]} 25. Qxd6 {[%emt 0:00:06]} (25. Ra7 $17 {is the only way for White.} Rxa7 26. Qxa7) 25... Rxa2 $19 {[%emt 0:00:19]} 26. Rb8 $2 {[%emt 0:00:01]} (26. h3 $19 Rxf2 {[%mdl 64] Decoy} 27. Rxf2 Qe1+ {[%mdl 64] Pin, Double Attack} 28. Kh2 Bxf2 29. h4) 26... Bxf2+ $2 {[%emt 0:00:55][%mdl 8192]} 27. Kh1 $1 $18 {[%emt 0:00:06][%cal Od6f8] White wants to mate with Qf8+!} (27. Rxf2 Ra1+) 27... Ra8 {[%emt 0:00:01] [#]} 28. Qf6 $1 {[%emt 0:01:32][%csl Gh6][%cal Rf6g7]} Qd4 {[%emt 0:00:05]} 29. Rxe8+ $1 {[%emt 0:00:13]} (29. Qxf2 $2 {is the wrong capture.} Qxf2 30. Rbb1 Qd4 $19) 29... Rxe8 {[%emt 0:00:02] [#]} 30. Qf3 {[%emt 0:00:01]} (30. Qxf2 {leads to mate.} Qxf2 31. h3 Qxf1+ 32. Kh2 Re2 33. Kg3 Rxg2+ 34. Kh4 Qf2#) 30... f5 {[%emt 0:00:26]} 31. d6 $2 {[%emt 0:00:01]} (31. Qxf2 {gets mated.} Qxf2 32. h4 Qxf1+ 33. Kh2 Re2 34. Kg3 Qxg2+ 35. Kf4 Qg4#) (31. Rxf2 $18 Qa1+ 32. Rf1) 31... Bh4 $11 {[%emt 0:00:01]} 32. g3 {[%emt 0:00:12] Hoping for Rd1.} Bf6 {[%emt 0:00:13]} 33. Rd1 {[%emt 0:00:47]} Qxc4 {[%emt 0:00:01]} 34. d7 {[%emt 0:00:01][%cal Rd7e8]} Rd8 {[%emt 0:00:00]} 35. Bf4 $2 {[%emt 0:00:00] [#]} (35. Qc6 $11 {and White has nothing to worry.} Qe4+ 36. Qxe4 fxe4 37. Rd5) 35... Qe6 $2 {[%emt 0:00:05]} (35... Bd4 $1 $19 36. Re1 Rxd7) 36. Qd5 $132 {[%emt 0:00:03][%mdl 2048] White has counterplay} Qxd5+ {[%emt 0:00:58]} 37. Rxd5 {[%emt 0:00:00][%cal Of4c7][%mdl 4096] Endgame KRB-KRB} Ra8 {[%emt 0:00:00]} 38. Rxc5 {[%emt 0:00:19] Strongly threatening Rc8+.} Kf7 {[%emt 0:00:02]} 39. Rc7 {[%emt 0:00:02]} (39. Rc8 $5 Ra1+ $8 40. Kg2 $11) 39... Rd8 {[%emt 0:00:16]} 40. Bd2 {[%emt 0:00:10]} (40. h4 $11) 40... Be5 $15 {[%emt 0:00:22]} 41. Rb7 {[%emt 0:00:02] aiming for Ba5.} Ke6 {[%emt 0:00:01]} 42. Ba5 {[%emt 0:00:02]} Rxd7 {[%emt 0:00:01]} 43. Rxd7 {[%emt 0:00:00]} Kxd7 {[%emt 0:00:00] KB-KB} 44. Kg2 {[%emt 0:00:00]} g5 {[%emt 0:00:04]} 45. Bd2 {[%emt 0:00:02]} g4 {[%emt 0:00:01]} 46. Bg5 {[%emt 0:00:04]} Ke6 {[%emt 0:00:01]} 47. h3 {[%emt 0:00:02]} h5 {[%emt 0:00:04]} 48. hxg4 {[%emt 0:00:01]} hxg4 {[%emt 0:00:02]} 49. Bh6 {[%emt 0:00:02]} Bf6 {[%emt 0:00:02]} 50. Bf4 {[%emt 0:00:02]} Kd5 {[%emt 0:00:02]} 51. Bh6 {[%emt 0:00:02]} Ke4 {[%emt 0:00:00]} 52. Bf4 {[%emt 0:00:05]} Be5 {[%emt 0:00:00]} 53. Bh6 {[%emt 0:00:00]} Bf6 {[%emt 0:00:01]} 54. Bf4 {[%emt 0:00:02]} Be5 {[%emt 0:00:00]} 55. Bh6 {[%emt 0:00:00]} Bf6 {[%emt 0:00:01] White really could win this. A brilliant game!   Weighted Error Value: White=0.28 (precise) /Black=0.25 (precise)} (55... Bd6 $17 56. Kf2 Kd5) 1/2-1/2

[Event "ChessKid Cup Div-I 2023"]
[Site "Online"]
[Date "2023.05.24"]
[Round "3.3"]
[White "Van Foreest, Jorden"]
[Black "Abdusattorov, Nodirbek"]
[Result "0-1"]
[ECO "D27"]
[WhiteElo "2689"]
[BlackElo "2731"]
[Annotator "TA"]
[PlyCount "60"]
[EventDate "2023.05.21"]
[EventType "k.o."]
[EventCountry "NET"]
[SourceTitle "playchess.com"]
[Source "ChessBase"]
[SourceQuality "1"]
[TimeControl "900+3"]

{[%evp 12,60,29,34,27,22,14,5,16,0,6,17,0,0,2,-4,0,0,7,-20,-1,-24,17,0,36,-19,0,-34,-19,-22,0,-44,-39,-222,-271,-275,-273,-277,-276,-263,-276,-276,-276,-272,-261,-252,-235,-307,-307,-314,-315]} 1. d4 {[%emt 0:00:04]} d5 {[%emt 0:00:08]} 2. c4 {[%emt 0:00:01]} dxc4 {[%emt 0:00:06]} 3. Nf3 {[%emt 0:00:04]} Nf6 {[%emt 0:00:01]} 4. e3 {[%emt 0:00:00]} e6 {[%emt 0:00:01]} 5. Bxc4 {[%emt 0:00:02]} a6 {[%emt 0:00:00]} 6. O-O {[%emt 0:00:13]} c5 {[%emt 0:00:01]} 7. b3 {[%emt 0:00:13]} b6 {[%emt 0:00:08] D27: Queen's Gambit Accepted: Classical main line: 7 e4!? and 7 a4.} 8. Bb2 {[%emt 0:00:20] 8.Ba3 injects fresh life into this line.} Bb7 {[%emt 0:00:03]} 9. Be2 {[%emt 0:00:18]} (9. dxc5 {is more complex.} Qxd1 10. Rxd1 Bxc5 11. Ne5) 9... Nbd7 {[%emt 0:00:08] The position is equal.} 10. Nbd2 {[%emt 0:00:23]} Be7 {[%emt 0:00:02]} 11. Ne5 {[%emt 0:00:02]} Nxe5 {[%emt 0:01:12]} 12. dxe5 {[%emt 0:00:03]} Nd5 {[%emt 0:00:00] [#]} 13. Bf3 $146 {[%emt 0:00:17]} ({Predecessor:} 13. a3 O-O 14. Qc2 Qc7 15. Rfd1 Rfd8 16. Ne4 Qc6 17. Bf3 Rd7 18. Rd2 Rad8 19. Rad1 {½-½ Can,E (2606)-Alsina Leal,D (2525) POR-chT Ovar 2022 (6.4)}) 13... Qc7 {[%emt 0:00:36]} 14. a3 {[%emt 0:00:03]} O-O {[%emt 0:00:02]} 15. Qc2 {[%emt 0:00:05]} Rfd8 {[%emt 0:00:27]} 16. Rac1 {[%emt 0:00:13]} Rd7 {[%emt 0:00:13]} 17. Rfd1 {[%emt 0:00:43]} (17. Nc4 {with more complications.} b5 18. Nd6 Bxd6 19. exd6 Qxd6 20. Rfd1) 17... Rad8 {[%emt 0:00:11]} (17... b5 $5) 18. Ne4 {[%emt 0:00:07]} (18. Nc4 $14) 18... Qc8 {[%emt 0:00:47]} 19. Qb1 {[%emt 0:01:04]} Qa8 {[%emt 0:00:47]} 20. h3 {[%emt 0:01:14]} h6 {[%emt 0:00:10]} 21. Ba1 {[%emt 0:00:14][%cal Oe4d6]} a5 {[%emt 0:00:03]} 22. Qc2 $2 {[%emt 0:01:29] [#] This costs White the game.} (22. Nd6 $15) 22... Nxe3 $1 $19 {[%emt 0:00:26][%mdl 576] Discovered Attack, Double Attack} 23. Rxd7 {[%emt 0:02:40]} (23. fxe3 Rxd1+ 24. Rxd1 Rxd1+ 25. Qxd1 Bxe4 $19) 23... Nxc2 {[%emt 0:00:05]} 24. Rxb7 {[%emt 0:00:00]} Qxb7 {[%emt 0:01:13]} ({Don't blunder} 24... Nxa1 $2 25. Rxe7 Nxb3 26. Nxc5 $19) 25. Nf6+ {[%emt 0:00:02]} Bxf6 {[%emt 0:00:13]} (25... gxf6 $2 {perishes.} 26. Bxb7 Nxa1 27. Rxa1 $19) 26. Bxb7 {[%emt 0:00:00]} Nxa1 {[%emt 0:00:01][%mdl 64] [#] Remove Defender} ({Resist} 26... Nxa3 27. exf6 Nb5 28. fxg7 $16) 27. Rxa1 {[%emt 0:00:14]} Bxe5 {[%emt 0:00:01]} 28. Re1 {[%emt 0:00:00]} Bc3 {[%emt 0:00:18]} 29. Re2 {[%emt 0:00:36]} Rd1+ {[%emt 0:00:02]} 30. Kh2 {[%emt 0:00:01]} Rb1 {[%emt 0:00:01] Weighted Error Value: White=0.30/Black=0.07 (flawless)} 0-1